fUSD/lending_fUSD_20260107
["ID","MTS","AMOUNT","RATE_DAILY","PERIOD"]
[400698439,1767783039763,-16401.25420473,0.00017113,2]
[400698441,1767783039772,-287.1272259,0.00017165,2]
[400698443,1767783039782,-195.0,0.00017165,2]
[400698445,1767783039792,-300.0,0.00017165,2]
[400698447,1767783039802,-195.0,0.00017165,2]
[400698449,1767783039812,-1034.22998151,0.00017228,2]
[400698451,1767783039821,-500.0,0.00017249,2]
[400698453,1767783039830,-2042.09,0.00017266,2]
[400698455,1767783039840,-1000.0,0.00017272,2]
[400698457,1767783039850,-1630.1,0.00017349,2]
[400698460,1767783039859,-10474.34491997,0.00017359,2]
[400698461,1767783039869,-16401.25420473,0.00017381,2]
[400698464,1767783039879,-228.14,0.0001753,2]
[400698465,1767783039888,-1034.22998151,0.00017572,2]
[400698467,1767783039897,-791.55833605,0.00017582,2]
[400698470,1767783039906,-500.0,0.00017594,2]
[400698472,1767783039917,-169.74559645,0.00017594,2]
[400698474,1767783039926,-175.21486475,0.00017594,2]
[400698476,1767783039936,-500.0,0.00017594,2]
[400698478,1767783039945,-500.0,0.00017594,2]
[400698480,1767783039955,-500.0,0.00017594,2]
[400698482,1767783039964,-500.0,0.00017594,2]
[400698484,1767783039973,-538.59757642,0.00017594,2]
[400698486,1767783039982,-500.0,0.00017594,2]
[400698488,1767783039991,-224.66209336,0.00017594,2]
[400698490,1767783040000,-500.0,0.00017594,2]
[400698492,1767783040009,-536.66734105,0.00017594,2]
[400698494,1767783040019,-500.0,0.00017594,2]
[400698524,1767783040294,-500.0,0.00017594,2]
[400698526,1767783040303,-500.0,0.00017594,2]
[400698528,1767783040313,-500.0,0.00017594,2]
[400698530,1767783040323,-165.31618738,0.00017594,2]
[400698532,1767783040333,-500.0,0.00017594,2]
[400698534,1767783040343,-500.93985952,0.00017594,2]
[400698536,1767783040352,-500.0,0.00017594,2]
[400698538,1767783040361,-163.2920989,0.00017594,2]
[400698540,1767783040370,-500.0,0.00017594,2]
[400698542,1767783040379,-500.0,0.00017594,2]
[400698544,1767783040387,-500.0,0.00017594,2]
[400698546,1767783040396,-500.0,0.00017594,2]
[400698548,1767783040406,-500.0,0.00017594,2]
[400698550,1767783040417,-500.0,0.00017594,2]
[400698552,1767783040427,-500.0,0.00017594,2]
[400698555,1767783040439,-500.0,0.00017594,2]
[400698556,1767783040449,-500.0,0.00017594,2]
[400698559,1767783040459,-500.0,0.00017594,2]
[400698560,1767783040468,-169.0457871,0.00017594,2]
[400698563,1767783040478,-162.472435,0.00017594,2]
[400698565,1767783040487,-500.0,0.00017594,2]
[400698567,1767783040497,-438.43604995,0.00017594,2]
[400698569,1767783040507,-500.0,0.00017594,2]
[400698571,1767783040516,-500.0,0.00017594,2]
[400698573,1767783040526,-500.0,0.00017594,2]
[400698575,1767783040535,-166.24303816,0.00017594,2]
[400698577,1767783040544,-500.0,0.00017594,2]
[400698579,1767783040554,-500.0,0.00017594,2]
[400698581,1767783040564,-236.4594886,0.00017594,2]
[400698583,1767783040573,-1630.1,0.00017623,2]
[400698585,1767783040583,-10474.34491997,0.00017638,2]
[400698586,1767783040593,-16401.25420473,0.00017649,2]
[400698589,1767783040603,-370.0,0.00017756,2]
[400698591,1767783040615,-370.0,0.00017778,2]
[400698593,1767783040627,-500.0,0.00017796,2]
[400698595,1767783040636,-504.00666552,0.00017797,2]
[400698597,1767783040645,-290.0,0.00017814,2]
[400698599,1767783040655,-25000.0,0.00017874,3]
[400698601,1767783040665,-25000.0,0.00017882,3]
[400698603,1767783040675,-25000.0,0.00017891,3]
[400698605,1767783040684,-1630.1,0.00017897,2]
[400698607,1767783040693,-10000.0,0.000179,2]
[400698609,1767783040703,-25000.0,0.000179,3]
[400698611,1767783040713,-5005.76233134,0.000179,2]
[400698613,1767783040723,-421.80735534,0.000179,2]
[400698615,1767783040732,-201.99613239,0.000179,3]
[400698617,1767783040741,-374.93421275,0.000179,2]
[400698618,1767783040750,-838.24055234,0.000179,2]
[400698621,1767783040760,-370.0,0.00017904,2]
[400698623,1767783040769,-163.42127782,0.00017908,2]
[400698625,1767783040778,-370.0,0.00017916,2]
[400698627,1767783040787,-1034.22998151,0.00017917,2]
[400698629,1767783040797,-16401.25420473,0.00017917,2]
[400698631,1767783040806,-420.86962424,0.00017917,2]
[400698633,1767783040815,-10474.34491997,0.00017917,2]
[400698635,1767783040824,-370.0,0.00017977,2]
[400698637,1767783040834,-270.98651139,0.0001799,2]
[400698639,1767783040843,-270.98651139,0.0001799,2]
[400698641,1767783040852,-151.0,0.00017997,2]
[400698643,1767783040862,-666.0,0.00017999,2]
[400698645,1767783040872,-500.0,0.00017999,2]
[400698647,1767783040881,-500.0,0.00017999,2]
[400698649,1767783040891,-500.0,0.00017999,2]
[400698651,1767783040901,-449.69501018,0.00017999,2]
[400698653,1767783040911,-500.0,0.00017999,2]
[400698655,1767783040921,-500.0,0.00017999,2]
[400698657,1767783040930,-500.00000001,0.00017999,2]
[400698659,1767783040939,-500.0,0.00017999,2]
[400698661,1767783040948,-500.0,0.00017999,2]
[400698663,1767783040958,-500.0,0.00017999,2]
[400698665,1767783040967,-500.0,0.00017999,2]
[400698667,1767783040977,-300.0,0.00017999,2]
[400698669,1767783040987,-666.0,0.00017999,2]
[400698671,1767783040996,-300.0,0.00017999,2]
[400698673,1767783041005,-1636394.00354558,0.00018,2]
[400698744,1767783041669,-5760944.41695985,0.00018,2]
[400698749,1767783041709,-918.78,0.00018,2]
[400698822,1767783042509,-949.97844259,0.00018,2]
[400698965,1767783043789,-151.0,0.00016361,2]
[400698967,1767783043798,-151.0,0.00016361,2]
[400698969,1767783043807,-331.18683892,0.000169,2]
[400698971,1767783043817,-1380469.57876284,0.00018,2]
[400698974,1767783043828,-1408794.21741147,0.00018,2]
[400699147,1767783045429,-974.46124942,0.00018,2]
[400701535,1767783070466,602.0,0.00032877,120]
[400702830,1767783215091,10000.01,0.000155,2]
[400702831,1767783215114,4999.99,0.000155,2]
[400702832,1767783239081,203.49411235,0.00015404,2]
[400702833,1767783241303,300.0,0.00015503,2]
[400702834,1767783313086,500.0,0.000328,120]
[400702836,1767783344847,326.14684445,0.00032876,120]
[400702837,1767783404138,-195.0,0.00015517,2]
[400702838,1767783410386,389.83784944,0.00032877,120]
[400702844,1767783501856,-300.0,0.00015523,2]
[400702845,1767783501879,-250.0,0.00015523,2]
[400702846,1767783501902,-114.35602782,0.00015527,2]
[400702847,1767783531586,664.356028,0.00015448,2]
[400702848,1767783538158,2560.43,0.00015447,2]
[400702849,1767783607308,-183.90186694,0.00015527,2]
[400702850,1767783614601,5037.0,0.0001551,2]
[400702852,1767783665088,183.901867,0.00015448,2]
[400702853,1767783677893,150.0,0.00015262,2]
[400702854,1767783683728,767.92,0.00015316,2]
[400702855,1767783728913,246.402105,0.00015285,2]
[400702856,1767783728937,11.167895,0.00015285,2]
[400702857,1767783740558,171.07,0.00012197,2]
[400702858,1767783774456,608.3252556,0.00032877,120]
[400702859,1767783791182,500.0,0.00015504,2]
[400702860,1767783816187,1852.42,0.00015423,2]
[400702861,1767783817440,-300.0,0.00015527,2]
[400702862,1767783817465,-126.4271086,0.00015527,2]
[400702863,1767783831758,-123.5728914,0.00015527,2]
[400702864,1767783831782,-49.99934792,0.00015527,2]
[400702865,1767783835043,-163.77363362,0.00015527,2]
[400702866,1767783835430,6500.0,0.0001552,2]
[400702867,1767783836599,-65.22701846,0.00015527,2]
[400702868,1767783836623,-123.08966467,0.00015541,2]
[400702869,1767783838638,976.52,0.00015453,2]
[400702870,1767783838661,4683.41,0.00015453,2]
[400702871,1767783839027,-220.23381288,0.00015541,2]
[400702872,1767783841643,-300.0,0.00015541,2]
[400702873,1767783844103,-377.68496302,0.00015541,2]
[400702874,1767783844131,-5.63186092,0.00015555,2]
[400702875,1767783845453,-381.0455418,0.00015555,2]
[400702876,1767783848131,-300.0,0.00015555,2]
[400702877,1767783850887,-198.37055173,0.00015555,2]
[400702878,1767783861713,-294.78439273,0.00015555,2]
[400702879,1767783862377,2735.056395,0.00015477,2]
[400702880,1767783865415,-164.03,0.0001555,2]
[400702881,1767783865440,-20.16765282,0.00015555,2]
[400702882,1767783865467,-106.1512303,0.00015555,2]
[400702883,1767783866968,-193.8487697,0.00015555,2]
[400702884,1767783866993,-139.33057878,0.00015555,2]
[400702885,1767783875241,918.312624,0.00015477,2]
[400702886,1767783880199,1663.230981,0.00015478,2]
[400702887,1767783880222,10000.01,0.00015478,2]
[400702888,1767783880244,10000.01,0.00015478,2]
[400702889,1767783880266,10000.01,0.00015478,2]
[400702890,1767783880288,10000.01,0.00015478,2]
[400702891,1767783880310,192.459019,0.00015478,2]
[400702892,1767783949047,5000.0,0.0001552,2]
[400702894,1767784055450,-1200.0,0.00015555,2]
[400702895,1767784055480,-300.0,0.00015555,2]
[400702896,1767784055512,-300.0,0.00015555,2]
[400702897,1767784061277,150.0,0.00015462,2]
[400702899,1767784081255,300.0,0.00015555,2]
[400702900,1767784141533,300.0,0.00015555,2]
[400702901,1767784172025,5650.01,0.00015435,2]
[400702902,1767784172049,10000.01,0.00015435,2]
[400702903,1767784172072,10000.01,0.00015435,2]
[400702904,1767784172095,10000.01,0.00015435,2]
[400702905,1767784172116,3849.77,0.00015435,2]
[400702906,1767784201763,300.0,0.00015555,2]
[400702907,1767784201793,300.0,0.00015555,2]
[400702908,1767784201825,1200.0,0.00015555,2]
[400702911,1767784231483,-1110.51759736,0.00015556,2]
[400702912,1767784231530,1000.0,0.00015477,2]
[400702913,1767784231561,-405.05,0.00015556,2]
[400702914,1767784231572,-1727.40362359,0.00015556,2]
[400702915,1767784231584,-754.66632813,0.00015556,2]
[400702916,1767784231595,-932.31905122,0.00015556,2]
[400702917,1767784231607,-8369.84668145,0.00015556,2]
[400702918,1767784231664,-371.3259998,0.00015556,2]
[400702919,1767784231675,-3694.31071845,0.00015556,2]
[400702920,1767784231685,-751.37,0.0001556,2]
[400702921,1767784231694,-500.0,0.00015604,2]
[400702922,1767784231704,-238.89324852,0.00015604,2]
[400702923,1767784231714,-500.0,0.00015604,2]
[400702924,1767784231724,-500.0,0.00015604,2]
[400702925,1767784231734,-500.0,0.00015604,2]
[400702926,1767784231744,-183.51,0.00015672,2]
[400702928,1767784231754,-500.0,0.00015705,2]
[400702930,1767784231764,-500.0,0.00015705,2]
[400702932,1767784231773,-500.0,0.00015705,2]
[400702934,1767784231783,-500.0,0.00015705,2]
[400702936,1767784231793,-500.0,0.00015705,2]
[400702938,1767784231803,-500.0,0.00015705,2]
[400702940,1767784231813,-1101.64,0.00015705,2]
[400702942,1767784231823,-283.51547018,0.00015772,2]
[400702944,1767784231833,-166.66,0.00015923,2]
[400702946,1767784231842,-1101.64,0.00015979,2]
[400702948,1767784231853,-550.0,0.00016006,2]
[400702950,1767784231863,-278.78,0.00016007,2]
[400702952,1767784231873,-500.0,0.00016007,2]
[400702954,1767784231882,-500.0,0.00016007,2]
[400702956,1767784231892,-500.0,0.00016007,2]
[400702958,1767784231902,-500.0,0.00016007,2]
[400702960,1767784231911,-500.0,0.00016007,2]
[400702962,1767784231920,-500.0,0.00016007,2]
[400702964,1767784231930,-500.0,0.00016007,2]
[400702966,1767784231939,-500.0,0.00016007,2]
[400702968,1767784231948,-500.0,0.00016007,2]
[400702970,1767784231957,-500.0,0.00016007,2]
[400702972,1767784231966,-500.0,0.00016007,2]
[400702974,1767784231975,-500.0,0.00016007,2]
[400702977,1767784231985,-500.0,0.00016007,2]
[400702979,1767784231994,-500.0,0.00016007,2]
[400702981,1767784232003,-500.0,0.00016007,2]
[400702983,1767784232013,-500.0,0.00016007,2]
[400702985,1767784232022,-274.20938665,0.00016007,2]
[400702987,1767784232031,-500.0,0.00016007,2]
[400702989,1767784232041,-500.0,0.00016007,2]
[400702991,1767784232050,-500.0,0.00016007,2]
[400702993,1767784232060,-500.0,0.00016007,2]
[400702995,1767784232069,-68904.58707956,0.00016008,2]
[400702997,1767784232079,-250.7765,0.00016238,2]
[400702999,1767784232088,-2500.0,0.00016238,2]
[400703001,1767784232097,-1101.64,0.00016253,2]
[400703003,1767784232107,-166.66,0.00016258,2]
[400703005,1767784232116,-128449.2455755,0.000163,2]
[400703007,1767784232126,-4314.3259,0.00016301,2]
[400703009,1767784232135,-500.0,0.00016301,2]
[400703011,1767784232145,-212.92203508,0.00016328,2]
[400703013,1767784232154,-151.0,0.00016328,2]
[400703015,1767784232163,-151.0,0.00016328,2]
[400703017,1767784232173,-151.0,0.00016328,2]
[400703019,1767784232182,-151.0,0.00016328,2]
[400703021,1767784232191,-151.0,0.00016328,2]
[400703023,1767784232201,-151.0,0.00016328,2]
[400703025,1767784232210,-151.0,0.00016328,2]
[400703027,1767784232219,-151.0,0.00016328,2]
[400703029,1767784232228,-151.0,0.00016328,2]
[400703031,1767784232238,-151.0,0.00016328,2]
[400703034,1767784232248,-151.0,0.00016328,2]
[400703036,1767784232258,-3485.87399289,0.00016336,2]
[400703038,1767784232268,-500.0,0.00016337,2]
[400703040,1767784232277,-610.48168681,0.00016337,2]
[400703042,1767784232286,-7030.66951619,0.00016337,2]
[400703044,1767784232296,-9932.08978015,0.00016337,2]
[400703046,1767784232306,-500.0,0.00016337,2]
[400703048,1767784232316,-500.0,0.00016337,2]
[400703050,1767784232326,-202.53434084,0.00016337,2]
[400703052,1767784232337,-444.08665537,0.00016337,2]
[400703054,1767784232346,-500.0,0.00016337,2]
[400703056,1767784232356,-433.26456449,0.00016337,2]
[400703058,1767784232365,-401.40517903,0.00016337,2]
[400703060,1767784232375,-500.0,0.00016337,2]
[400703061,1767784232385,-500.0,0.00016337,2]
[400703062,1767784232395,-500.0,0.00016337,2]
[400703063,1767784232404,-500.0,0.00016337,2]
[400703064,1767784232413,-500.0,0.00016337,2]
[400703065,1767784232423,-397.69285438,0.00016337,2]
[400703066,1767784232433,-500.0,0.00016337,2]
[400703067,1767784232444,-150.0,0.00016337,2]
[400703068,1767784232454,-150.0,0.00016337,2]
[400703069,1767784232464,-150.0,0.00016337,2]
[400703070,1767784232474,-34674.09022282,0.00016338,2]
[400703071,1767784232491,-14364.64855197,0.00016338,2]
[400703072,1767784232503,-67581.20163144,0.00016338,2]
[400703073,1767784232516,-156921.26578853,0.00016338,2]
[400703074,1767784232537,-44010.7815,0.00016338,2]
[400703307,1767784240209,-1.7e-07,0.00016338,2]
[400703348,1767784244765,-519292.80831543,0.00016338,2]
[400703349,1767784245674,-1159.95,0.00016338,2]
[400703350,1767784366624,1818.24,0.00015462,2]
[400703351,1767784385745,-500.0,0.00015604,2]
[400703352,1767784385772,-500.0,0.00015604,2]
[400703353,1767784385799,-300.0,0.00015604,2]
[400703354,1767784429029,7400.01,0.00015604,2]
[400703355,1767784429053,1751.87467,0.00015604,2]
[400703356,1767784473520,189.05,0.00015604,2]
[400703357,1767784474179,1000.0,0.00015604,2]
[400703358,1767784474554,1000.0,0.00015604,2]
[400703359,1767784474837,630.21,0.00015604,2]
[400703360,1767784499496,-259.94132505,0.00015772,2]
[400703361,1767784499519,-9151.88467,0.00015804,2]
[400703362,1767784499543,-300.0,0.00016003,2]
[400703363,1767784499569,-8788.17400495,0.00016004,2]
[400703364,1767784536890,-500.02557682,0.00015803,2]
[400703365,1767784539563,-300.0,0.00015803,2]
[400703366,1767784552346,-243.52532624,0.00015803,2]
[400703369,1767784693817,1477.39,7.725e-05,2]
[400703370,1767784693882,1477.39,8.132e-05,2]
[400703371,1767784694033,1477.39,8.538e-05,2]
[400703372,1767784694196,996.70533,8.945e-05,2]
[400703373,1767784694223,480.68467,8.945e-05,2]
[400703374,1767784694399,1477.39,9.351e-05,2]
[400703375,1767784694605,1477.39,9.758e-05,2]
[400703376,1767784694796,1477.39,0.00010164,2]
[400703377,1767784694989,1477.39,0.00010571,2]
[400703378,1767784695196,1477.39,0.00010978,2]
[400703379,1767784695338,-156.44909694,0.00015803,2]
[400703380,1767784695360,-84.02728732,0.00015884,2]
[400703381,1767784695405,1477.39,0.00011384,2]
[400703382,1767784695596,654.98533,0.00011791,2]
[400703383,1767784695621,822.40467,0.00011791,2]
[400703384,1767784695812,1477.39,0.00012197,2]
[400703385,1767784696002,1477.39,0.00012604,2]
[400703386,1767784696206,1477.39,0.0001301,2]
[400703387,1767784696609,1477.39,0.00013417,2]
[400703389,1767784697207,1477.39,0.00013824,2]
[400703390,1767784697338,1477.39,0.0001423,2]
[400703391,1767784697524,313.26533,0.00014637,2]
[400703392,1767784697548,1164.12467,0.00014637,2]
[400703393,1767784697724,1477.39,0.00015043,2]
[400703394,1767784698879,1477.39,0.0001545,2]
[400703396,1767784794482,999.0,0.00015449,3]
[400703397,1767784807115,200.0,0.00015449,2]
[400703398,1767784821858,-208.2668177,0.00015884,2]
[400703399,1767784826657,604.16,0.00015419,2]
[400703400,1767784828812,200.0,0.00032,120]
[400703401,1767784837460,-7.70589498,0.00015884,2]
[400703402,1767784837484,-195.0,0.00015884,2]
[400703403,1767784837508,-115.44313631,0.00015884,2]
[400703404,1767784840399,-167.55686369,0.00015884,2]
[400703405,1767784840424,-300.0,0.00015963,2]
[400703406,1767784840448,-64.03505372,0.00015963,2]
[400703407,1767784841804,-151.29621885,0.00015963,2]
[400703408,1767784844511,-296.97286097,0.00015963,2]
[400703409,1767784846553,-470.12465888,0.00015963,2]
[400703410,1767784846964,600.0,0.00032,120]
[400703411,1767784875190,1001.76,0.00015569,2]
[400703412,1767785009920,200.0,0.00015444,2]
[400703413,1767785124657,6406.31927,0.0001584,2]
[400703414,1767785182283,3593.69073,0.00015347,2]
[400703415,1767785182307,914.57927,0.00015347,2]
[400703417,1767785302475,-300.0,0.00015963,2]
[400703418,1767785302506,-5.75969384,0.00015963,2]
[400703419,1767785306166,-212.8727741,0.00015963,2]
[400703421,1767785307472,-300.0,0.00015963,2]
[400703426,1767785328685,5000.0,0.0003287,120]
[400703427,1767785330206,5000.0,0.0003287,120]
[400703430,1767785423106,9085.43073,0.000159,2]
[400703431,1767785423132,10000.01,0.000159,2]
[400703432,1767785423158,10000.01,0.000159,2]
[400703433,1767785423182,10000.01,0.000159,2]
[400703434,1767785423207,10000.01,0.000159,2]
[400703435,1767785423232,10000.01,0.000159,2]
[400703436,1767785423257,10000.01,0.000159,2]
[400703437,1767785423282,10000.01,0.000159,2]
[400703438,1767785423310,10000.01,0.000159,2]
[400703439,1767785423335,10000.01,0.000159,2]
[400703453,1767785432049,-106323.48772795,0.000159,2]
[400703454,1767785432060,-56739.17147837,0.000159,2]
[400703455,1767785432076,-47586.03091391,0.000159,2]
[400703456,1767785432087,-753.54269787,0.000159,2]
[400703457,1767785432099,-1027.11678612,0.000159,2]
[400703458,1767785432142,-3753.07156661,0.000159,2]
[400703459,1767785432154,-7477.9414305,0.000159,2]
[400703460,1767785432165,-1487.95536,0.000159,2]
[400703461,1767785432177,-5879.39187,0.000159,2]
[400703462,1767785432189,-510.0,0.000159,2]
[400703463,1767785432201,-1650.0,0.000159,2]
[400703464,1767785437798,-500.0,0.00015899,2]
[400703465,1767785437809,-243.25819763,0.00015899,2]
[400703466,1767785437818,-630.98362532,0.00015899,2]
[400703467,1767785437833,-500.0,0.00015899,2]
[400703468,1767785437842,-500.0,0.00015899,2]
[400703469,1767785437851,-500.0,0.00015899,2]
[400703470,1767785437860,-565.7898152,0.00015899,2]
[400703471,1767785437871,-500.0,0.00015899,2]
[400703472,1767785437880,-586.02326518,0.00015899,2]
[400703473,1767785437890,-667726.76943867,0.000159,2]
[400703474,1767785437901,-2500.0,0.00015932,2]
[400703475,1767785437910,-760.40654114,0.00015951,2]
[400703476,1767785437919,-300.0,0.00015963,2]
[400703477,1767785437931,-1200.0,0.00015963,2]
[400703478,1767785437940,-195.0,0.00015963,2]
[400703479,1767785437949,-172.686956,0.00015963,2]
[400703480,1767785437958,-250.0,0.00015963,2]
[400703481,1767785437968,-11998.18,0.00015964,2]
[400703482,1767785437978,-195.0,0.00015978,2]
[400703483,1767785437988,-300.0,0.00015999,2]
[400703484,1767785437999,-82546.0582658,0.00016,2]
[400703485,1767785438010,-5765.68734,0.00016004,2]
[400703486,1767785438020,-12027.48814426,0.00016038,2]
[400703487,1767785438031,-33569.5495,0.00016138,2]
[400703488,1767785438041,-29167.0874,0.00016138,2]
[400703489,1767785438050,-2500.0,0.00016138,2]
[400703490,1767785438060,-604.16,0.0001619,2]
[400703491,1767785438071,-587.49807485,0.00016198,2]
[400703492,1767785438081,-5000.0,0.000162,5]
[400703493,1767785438092,-167.39628111,0.00016201,2]
[400703494,1767785438102,-172.37166361,0.00016201,2]
[400703495,1767785438112,-196.62378841,0.00016201,2]
[400703496,1767785438123,-172.37166361,0.00016201,2]
[400703498,1767785438133,-5765.68734,0.00016204,2]
[400703500,1767785438143,-196.6237884,0.00016226,2]
[400703502,1767785438154,-270.98651139,0.00016228,2]
[400703505,1767785438165,-151.0,0.00016228,2]
[400703507,1767785438174,-151.0,0.00016228,2]
[400703508,1767785438184,-151.0,0.00016228,2]
[400703511,1767785438194,-151.0,0.00016228,2]
[400703513,1767785438204,-151.0,0.00016228,2]
[400703514,1767785438214,-151.0,0.00016228,2]
[400703516,1767785438223,-151.0,0.00016228,2]
[400703518,1767785438234,-151.0,0.00016228,2]
[400703520,1767785438245,-151.0,0.00016228,2]
[400703522,1767785438255,-151.0,0.00016228,2]
[400703524,1767785438265,-151.0,0.00016228,2]
[400703527,1767785438276,-298.4562,0.00016237,2]
[400703528,1767785438286,-500.0,0.00016237,2]
[400703531,1767785438297,-500.0,0.00016237,2]
[400703532,1767785438307,-500.0,0.00016237,2]
[400703534,1767785438318,-500.0,0.00016237,2]
[400703536,1767785438328,-500.0,0.00016237,2]
[400703538,1767785438339,-1239.34,0.00016237,2]
[400703540,1767785438349,-240.87342203,0.00016237,2]
[400703542,1767785438359,-500.0,0.00016237,2]
[400703544,1767785438369,-500.0,0.00016237,2]
[400703546,1767785438380,-500.0,0.00016237,2]
[400703548,1767785438390,-461.49248906,0.00016237,2]
[400703550,1767785438400,-1115.94903288,0.00016237,5]
[400703552,1767785438411,-210.65168938,0.00016237,2]
[400703554,1767785438422,-12027.4881442,0.00016245,2]
[400703556,1767785438436,-500.0,0.00016301,2]
[400703558,1767785438447,-1550.8564564,0.00016312,2]
[400703560,1767785438457,-216481.5105988,0.00016326,2]
[400703562,1767785438466,-150836.5329593,0.00016326,2]
[400703564,1767785438477,-15199.9669146,0.00016327,2]
[400703566,1767785438487,-316159.9916033,0.00016327,2]
[400703568,1767785438497,-500.0,0.00016337,2]
[400703570,1767785438507,-500.0,0.00016337,2]
[400703572,1767785438518,-500.0,0.00016337,2]
[400703574,1767785438529,-500.0,0.00016337,2]
[400703575,1767785438538,-200.0,0.00016338,2]
[400703577,1767785438549,-200.0,0.00016338,2]
[400703579,1767785438559,-158.0,0.00016338,2]
[400703581,1767785438569,-158.0,0.00016338,2]
[400703583,1767785438579,-158.0,0.00016338,2]
[400703585,1767785438590,-156.3554653,0.00016338,2]
[400703587,1767785438600,-5765.68735,0.00016404,2]
[400703589,1767785438611,-710.37471752,0.00016438,2]
[400703591,1767785438622,-710.37471752,0.00016438,2]
[400703593,1767785438632,-710.37471752,0.00016438,2]
[400703595,1767785438642,-710.37471752,0.00016438,2]
[400703597,1767785438652,-710.37471752,0.00016438,2]
[400703599,1767785438664,-710.37471752,0.00016438,2]
[400703601,1767785438674,-710.37471752,0.00016438,2]
[400703603,1767785438690,-710.37471752,0.00016438,2]
[400703605,1767785438700,-710.37471752,0.00016438,2]
[400703607,1767785438711,-710.37471752,0.00016438,2]
[400703609,1767785438721,-710.37471752,0.00016438,2]
[400703611,1767785438732,-710.37471752,0.00016438,2]
[400703613,1767785438743,-710.37471752,0.00016438,2]
[400703615,1767785438753,-710.37471752,0.00016438,2]
[400703617,1767785438763,-710.37471752,0.00016438,2]
[400703619,1767785438773,-710.37471752,0.00016438,2]
[400703621,1767785438783,-710.37471752,0.00016438,2]
[400703623,1767785438794,-710.37471752,0.00016438,2]
[400703625,1767785438804,-710.37471752,0.00016438,2]
[400703627,1767785438814,-710.37471752,0.00016438,2]
[400703629,1767785438825,-710.37471752,0.00016438,2]
[400703631,1767785438839,-710.37471752,0.00016438,2]
[400703632,1767785438849,-710.37471752,0.00016438,2]
[400703634,1767785438859,-710.37471752,0.00016438,2]
[400703635,1767785438869,-710.37471752,0.00016438,2]
[400703638,1767785438879,-710.37471752,0.00016438,2]
[400703640,1767785438890,-710.37471752,0.00016438,2]
[400703641,1767785438900,-710.37471752,0.00016438,2]
[400703643,1767785438913,-710.37471752,0.00016438,2]
[400703645,1767785438923,-710.37471752,0.00016438,2]
[400703647,1767785438933,-710.37471752,0.00016438,2]
[400703650,1767785438945,-710.37471752,0.00016438,2]
[400703651,1767785438956,-710.37471752,0.00016438,2]
[400703654,1767785438966,-710.37471752,0.00016438,2]
[400703655,1767785438976,-710.37471752,0.00016438,2]
[400703657,1767785438986,-710.37471752,0.00016438,2]
[400703659,1767785438996,-710.37471752,0.00016438,2]
[400703661,1767785439007,-710.37471752,0.00016438,2]
[400703663,1767785439017,-710.37471752,0.00016438,2]
[400703665,1767785439027,-710.37471752,0.00016438,2]
[400703667,1767785439037,-710.37471752,0.00016438,2]
[400703669,1767785439047,-710.37471752,0.00016438,2]
[400703671,1767785439057,-710.37471752,0.00016438,2]
[400703673,1767785439067,-710.37471752,0.00016438,2]
[400703675,1767785439077,-710.37471752,0.00016438,2]
[400703677,1767785439086,-710.37471752,0.00016438,2]
[400703679,1767785439096,-710.37471752,0.00016438,2]
[400703681,1767785439106,-710.37471752,0.00016438,2]
[400703683,1767785439116,-710.37471752,0.00016438,2]
[400703685,1767785439126,-710.37471752,0.00016438,2]